{"text_format":"3","workbook":"xlsx","n_sheets":1,"sheets":["Kalenteri"],"not_rendered":{"defined_names":79},"read":"whole","date_system":"1900"}

{"sheet":"Kalenteri","index":0,"n_rows":167,"n_cols":8,"rows_kept":167,"merged":[[0,2,0,4],[12,3,12,7],[13,3,13,7],[14,2,14,4],[26,3,26,7],[27,3,27,7],[28,2,28,4],[40,3,40,7],[41,3,41,7],[42,2,42,4],[54,3,54,7],[55,3,55,7],[56,2,56,4],[68,3,68,7],[69,3,69,7],[70,2,70,4],[82,3,82,7],[83,3,83,7],[84,2,84,4],[96,3,96,7],[97,3,97,7],[98,2,98,4],[110,3,110,7],[111,3,111,7],[112,2,112,4],[124,3,124,7],[125,3,125,7],[126,2,126,4],[138,3,138,7],[139,3,139,7],[140,2,140,4],[152,3,152,7],[153,3,153,7],[154,2,154,4],[166,3,166,7],[167,3,167,7]]}
[null,{"$f":"YEAR(TODAY())","v":2019},"elokuu"]
[null,"MAANANTAI",{"$f":"UPPER(TEXT(C3,\"pppp\"))","v":"PPPP"},"PPPP","PPPP","PPPP","PPPP","PPPP"]
[null,{"$f":"Päivät+1+DATE(Calendar1Year,Calendar1MonthOption,1)-WEEKDAY(DATE(Calendar1Year,Calendar1MonthOption,1),WeekdayOption)","v":"2019-07-29"},"2019-07-30","2019-07-31","2019-08-01","2019-08-02","2019-08-03","2019-08-04"]
[]
[null,{"$f":"Päivät+8+DATE(Calendar1Year,Calendar1MonthOption,1)-WEEKDAY(DATE(Calendar1Year,Calendar1MonthOption,1),WeekdayOption)","v":"2019-08-05"},"2019-08-06","2019-08-07","2019-08-08","2019-08-09","2019-08-10","2019-08-11"]
[{"$nulls":4},"Vanhempainilta klo 19"]
[null,{"$f":"Päivät+15+DATE(Calendar1Year,Calendar1MonthOption,1)-WEEKDAY(DATE(Calendar1Year,Calendar1MonthOption,1),WeekdayOption)","v":"2019-08-12"},"2019-08-13","2019-08-14","2019-08-15","2019-08-16","2019-08-17","2019-08-18"]
[]
[null,{"$f":"Päivät+22+DATE(Calendar1Year,Calendar1MonthOption,1)-WEEKDAY(DATE(Calendar1Year,Calendar1MonthOption,1),WeekdayOption)","v":"2019-08-19"},"2019-08-20","2019-08-21","2019-08-22","2019-08-23","2019-08-24","2019-08-25"]
[]
[null,{"$f":"Päivät+29+DATE(Calendar1Year,Calendar1MonthOption,1)-WEEKDAY(DATE(Calendar1Year,Calendar1MonthOption,1),WeekdayOption)","v":"2019-08-26"},"2019-08-27","2019-08-28","2019-08-29","2019-08-30","2019-08-31","2019-09-01"]
[]
[null,{"$f":"Päivät+36+DATE(Calendar1Year,Calendar1MonthOption,1)-WEEKDAY(DATE(Calendar1Year,Calendar1MonthOption,1),WeekdayOption)","v":"2019-09-02"},"2019-09-03","Muistiinpanot:"]
[]
[null,{"$f":"YEAR(DATE(Calendar1Year,Calendar1MonthOption+1,1))","v":"1905-07-11"},{"$f":"TEXT(DATE(Calendar1Year,Calendar1MonthOption+1,1),\"kkkk\")","v":"kkkk"}]
[null,{"$f":"UPPER(TEXT(B17,\"pppp\"))","v":{"$error":"#N/A"}},{"$error":"#N/A"},{"$error":"#N/A"},{"$error":"#N/A"},{"$error":"#N/A"},{"$error":"#N/A"},{"$error":"#N/A"}]
[null,{"$f":"Päivät+1+DATE(Calendar2Year,Calendar2MonthOption,1)-WEEKDAY(DATE(Calendar2Year,Calendar2MonthOption,1),WeekdayOption)","v":{"$error":"#N/A"}},{"$error":"#N/A"},{"$error":"#N/A"},{"$error":"#N/A"},{"$error":"#N/A"},{"$error":"#N/A"},{"$error":"#N/A"}]
[]
[null,{"$f":"Päivät+8+DATE(Calendar2Year,Calendar2MonthOption,1)-WEEKDAY(DATE(Calendar2Year,Calendar2MonthOption,1),WeekdayOption)","v":{"$error":"#N/A"}},{"$error":"#N/A"},{"$error":"#N/A"},{"$error":"#N/A"},{"$error":"#N/A"},{"$error":"#N/A"},{"$error":"#N/A"}]
[]
[null,{"$f":"Päivät+15+DATE(Calendar2Year,Calendar2MonthOption,1)-WEEKDAY(DATE(Calendar2Year,Calendar2MonthOption,1),WeekdayOption)","v":{"$error":"#N/A"}},{"$error":"#N/A"},{"$error":"#N/A"},{"$error":"#N/A"},{"$error":"#N/A"},{"$error":"#N/A"},{"$error":"#N/A"}]
[]
[null,{"$f":"Päivät+22+DATE(Calendar2Year,Calendar2MonthOption,1)-WEEKDAY(DATE(Calendar2Year,Calendar2MonthOption,1),WeekdayOption)","v":{"$error":"#N/A"}},{"$error":"#N/A"},{"$error":"#N/A"},{"$error":"#N/A"},{"$error":"#N/A"},{"$error":"#N/A"},{"$error":"#N/A"}]
[]
[null,{"$f":"Päivät+29+DATE(Calendar2Year,Calendar2MonthOption,1)-WEEKDAY(DATE(Calendar2Year,Calendar2MonthOption,1),WeekdayOption)","v":{"$error":"#N/A"}},{"$error":"#N/A"},{"$error":"#N/A"},{"$error":"#N/A"},{"$error":"#N/A"},{"$error":"#N/A"},{"$error":"#N/A"}]
[]
[null,{"$f":"Päivät+36+DATE(Calendar2Year,Calendar2MonthOption,1)-WEEKDAY(DATE(Calendar2Year,Calendar2MonthOption,1),WeekdayOption)","v":{"$error":"#N/A"}},{"$error":"#N/A"},"Muistiinpanot:"]
[]
[null,{"$f":"YEAR(DATE(Calendar2Year,Calendar2MonthOption+1,1))","v":{"$error":"#N/A"}},{"$f":"TEXT(DATE(Calendar2Year,Calendar2MonthOption+1,1),\"kkkk\")","v":{"$error":"#N/A"}}]
[null,{"$f":"UPPER(TEXT(B31,\"pppp\"))","v":{"$error":"#N/A"}},{"$error":"#N/A"},{"$error":"#N/A"},{"$error":"#N/A"},{"$error":"#N/A"},{"$error":"#N/A"},{"$error":"#N/A"}]
[null,{"$f":"Päivät+1+DATE(Calendar3Year,Calendar3MonthOption,1)-WEEKDAY(DATE(Calendar3Year,Calendar3MonthOption,1),WeekdayOption)","v":{"$error":"#N/A"}},{"$error":"#N/A"},{"$error":"#N/A"},{"$error":"#N/A"},{"$error":"#N/A"},{"$error":"#N/A"},{"$error":"#N/A"}]
[]
[null,{"$f":"Päivät+8+DATE(Calendar3Year,Calendar3MonthOption,1)-WEEKDAY(DATE(Calendar3Year,Calendar3MonthOption,1),WeekdayOption)","v":{"$error":"#N/A"}},{"$error":"#N/A"},{"$error":"#N/A"},{"$error":"#N/A"},{"$error":"#N/A"},{"$error":"#N/A"},{"$error":"#N/A"}]
[]
[null,{"$f":"Päivät+15+DATE(Calendar3Year,Calendar3MonthOption,1)-WEEKDAY(DATE(Calendar3Year,Calendar3MonthOption,1),WeekdayOption)","v":{"$error":"#N/A"}},{"$error":"#N/A"},{"$error":"#N/A"},{"$error":"#N/A"},{"$error":"#N/A"},{"$error":"#N/A"},{"$error":"#N/A"}]
[]
[null,{"$f":"Päivät+22+DATE(Calendar3Year,Calendar3MonthOption,1)-WEEKDAY(DATE(Calendar3Year,Calendar3MonthOption,1),WeekdayOption)","v":{"$error":"#N/A"}},{"$error":"#N/A"},{"$error":"#N/A"},{"$error":"#N/A"},{"$error":"#N/A"},{"$error":"#N/A"},{"$error":"#N/A"}]
[]
[null,{"$f":"Päivät+29+DATE(Calendar3Year,Calendar3MonthOption,1)-WEEKDAY(DATE(Calendar3Year,Calendar3MonthOption,1),WeekdayOption)","v":{"$error":"#N/A"}},{"$error":"#N/A"},{"$error":"#N/A"},{"$error":"#N/A"},{"$error":"#N/A"},{"$error":"#N/A"},{"$error":"#N/A"}]
[]
[null,{"$f":"Päivät+36+DATE(Calendar3Year,Calendar3MonthOption,1)-WEEKDAY(DATE(Calendar3Year,Calendar3MonthOption,1),WeekdayOption)","v":{"$error":"#N/A"}},{"$error":"#N/A"},"Muistiinpanot:"]
[]
[null,{"$f":"YEAR(DATE(Calendar3Year,Calendar3MonthOption+1,1))","v":{"$error":"#N/A"}},{"$f":"TEXT(DATE(Calendar3Year,Calendar3MonthOption+1,1),\"kkkk\")","v":{"$error":"#N/A"}}]
[null,{"$f":"UPPER(TEXT(B45,\"pppp\"))","v":{"$error":"#N/A"}},{"$error":"#N/A"},{"$error":"#N/A"},{"$error":"#N/A"},{"$error":"#N/A"},{"$error":"#N/A"},{"$error":"#N/A"}]
[null,{"$f":"Päivät+1+DATE(Calendar4Year,Calendar4MonthOption,1)-WEEKDAY(DATE(Calendar4Year,Calendar4MonthOption,1),WeekdayOption)","v":{"$error":"#N/A"}},{"$error":"#N/A"},{"$error":"#N/A"},{"$error":"#N/A"},{"$error":"#N/A"},{"$error":"#N/A"},{"$error":"#N/A"}]
[]
[null,{"$f":"Päivät+8+DATE(Calendar4Year,Calendar4MonthOption,1)-WEEKDAY(DATE(Calendar4Year,Calendar4MonthOption,1),WeekdayOption)","v":{"$error":"#N/A"}},{"$error":"#N/A"},{"$error":"#N/A"},{"$error":"#N/A"},{"$error":"#N/A"},{"$error":"#N/A"},{"$error":"#N/A"}]
[]
[null,{"$f":"Päivät+15+DATE(Calendar4Year,Calendar4MonthOption,1)-WEEKDAY(DATE(Calendar4Year,Calendar4MonthOption,1),WeekdayOption)","v":{"$error":"#N/A"}},{"$error":"#N/A"},{"$error":"#N/A"},{"$error":"#N/A"},{"$error":"#N/A"},{"$error":"#N/A"},{"$error":"#N/A"}]
[]
[null,{"$f":"Päivät+22+DATE(Calendar4Year,Calendar4MonthOption,1)-WEEKDAY(DATE(Calendar4Year,Calendar4MonthOption,1),WeekdayOption)","v":{"$error":"#N/A"}},{"$error":"#N/A"},{"$error":"#N/A"},{"$error":"#N/A"},{"$error":"#N/A"},{"$error":"#N/A"},{"$error":"#N/A"}]
[]
[null,{"$f":"Päivät+29+DATE(Calendar4Year,Calendar4MonthOption,1)-WEEKDAY(DATE(Calendar4Year,Calendar4MonthOption,1),WeekdayOption)","v":{"$error":"#N/A"}},{"$error":"#N/A"},{"$error":"#N/A"},{"$error":"#N/A"},{"$error":"#N/A"},{"$error":"#N/A"},{"$error":"#N/A"}]
[]
[null,{"$f":"Päivät+36+DATE(Calendar4Year,Calendar4MonthOption,1)-WEEKDAY(DATE(Calendar4Year,Calendar4MonthOption,1),WeekdayOption)","v":{"$error":"#N/A"}},{"$error":"#N/A"},"Muistiinpanot:"]
[]
[null,{"$f":"YEAR(DATE(Calendar4Year,Calendar4MonthOption+1,1))","v":{"$error":"#N/A"}},{"$f":"TEXT(DATE(Calendar4Year,Calendar4MonthOption+1,1),\"kkkk\")","v":{"$error":"#N/A"}}]
[null,{"$f":"UPPER(TEXT(B59,\"pppp\"))","v":{"$error":"#N/A"}},{"$error":"#N/A"},{"$error":"#N/A"},{"$error":"#N/A"},{"$error":"#N/A"},{"$error":"#N/A"},{"$error":"#N/A"}]
[null,{"$f":"Päivät+1+DATE(Calendar5Year,Calendar5MonthOption,1)-WEEKDAY(DATE(Calendar5Year,Calendar5MonthOption,1),WeekdayOption)","v":{"$error":"#N/A"}},{"$error":"#N/A"},{"$error":"#N/A"},{"$error":"#N/A"},{"$error":"#N/A"},{"$error":"#N/A"},{"$error":"#N/A"}]
[]
[null,{"$f":"Päivät+8+DATE(Calendar5Year,Calendar5MonthOption,1)-WEEKDAY(DATE(Calendar5Year,Calendar5MonthOption,1),WeekdayOption)","v":{"$error":"#N/A"}},{"$error":"#N/A"},{"$error":"#N/A"},{"$error":"#N/A"},{"$error":"#N/A"},{"$error":"#N/A"},{"$error":"#N/A"}]
[]
[null,{"$f":"Päivät+15+DATE(Calendar5Year,Calendar5MonthOption,1)-WEEKDAY(DATE(Calendar5Year,Calendar5MonthOption,1),WeekdayOption)","v":{"$error":"#N/A"}},{"$error":"#N/A"},{"$error":"#N/A"},{"$error":"#N/A"},{"$error":"#N/A"},{"$error":"#N/A"},{"$error":"#N/A"}]
[]
[null,{"$f":"Päivät+22+DATE(Calendar5Year,Calendar5MonthOption,1)-WEEKDAY(DATE(Calendar5Year,Calendar5MonthOption,1),WeekdayOption)","v":{"$error":"#N/A"}},{"$error":"#N/A"},{"$error":"#N/A"},{"$error":"#N/A"},{"$error":"#N/A"},{"$error":"#N/A"},{"$error":"#N/A"}]
[]
[null,{"$f":"Päivät+29+DATE(Calendar5Year,Calendar5MonthOption,1)-WEEKDAY(DATE(Calendar5Year,Calendar5MonthOption,1),WeekdayOption)","v":{"$error":"#N/A"}},{"$error":"#N/A"},{"$error":"#N/A"},{"$error":"#N/A"},{"$error":"#N/A"},{"$error":"#N/A"},{"$error":"#N/A"}]
[]
[null,{"$f":"Päivät+36+DATE(Calendar5Year,Calendar5MonthOption,1)-WEEKDAY(DATE(Calendar5Year,Calendar5MonthOption,1),WeekdayOption)","v":{"$error":"#N/A"}},{"$error":"#N/A"},"Muistiinpanot:"]
[]
[null,{"$f":"YEAR(DATE(Calendar5Year,Calendar5MonthOption+1,1))","v":{"$error":"#N/A"}},{"$f":"TEXT(DATE(Calendar5Year,Calendar5MonthOption+1,1),\"kkkk\")","v":{"$error":"#N/A"}}]
[null,{"$f":"UPPER(TEXT(B73,\"pppp\"))","v":{"$error":"#N/A"}},{"$error":"#N/A"},{"$error":"#N/A"},{"$error":"#N/A"},{"$error":"#N/A"},{"$error":"#N/A"},{"$error":"#N/A"}]
[null,{"$f":"Päivät+1+DATE(Calendar6Year,Calendar6MonthOption,1)-WEEKDAY(DATE(Calendar6Year,Calendar6MonthOption,1),WeekdayOption)","v":{"$error":"#N/A"}},{"$error":"#N/A"},{"$error":"#N/A"},{"$error":"#N/A"},{"$error":"#N/A"},{"$error":"#N/A"},{"$error":"#N/A"}]
[]
[null,{"$f":"Päivät+8+DATE(Calendar6Year,Calendar6MonthOption,1)-WEEKDAY(DATE(Calendar6Year,Calendar6MonthOption,1),WeekdayOption)","v":{"$error":"#N/A"}},{"$error":"#N/A"},{"$error":"#N/A"},{"$error":"#N/A"},{"$error":"#N/A"},{"$error":"#N/A"},{"$error":"#N/A"}]
[]
[null,{"$f":"Päivät+15+DATE(Calendar6Year,Calendar6MonthOption,1)-WEEKDAY(DATE(Calendar6Year,Calendar6MonthOption,1),WeekdayOption)","v":{"$error":"#N/A"}},{"$error":"#N/A"},{"$error":"#N/A"},{"$error":"#N/A"},{"$error":"#N/A"},{"$error":"#N/A"},{"$error":"#N/A"}]
[]
[null,{"$f":"Päivät+22+DATE(Calendar6Year,Calendar6MonthOption,1)-WEEKDAY(DATE(Calendar6Year,Calendar6MonthOption,1),WeekdayOption)","v":{"$error":"#N/A"}},{"$error":"#N/A"},{"$error":"#N/A"},{"$error":"#N/A"},{"$error":"#N/A"},{"$error":"#N/A"},{"$error":"#N/A"}]
[]
[null,{"$f":"Päivät+29+DATE(Calendar6Year,Calendar6MonthOption,1)-WEEKDAY(DATE(Calendar6Year,Calendar6MonthOption,1),WeekdayOption)","v":{"$error":"#N/A"}},{"$error":"#N/A"},{"$error":"#N/A"},{"$error":"#N/A"},{"$error":"#N/A"},{"$error":"#N/A"},{"$error":"#N/A"}]
[]
[null,{"$f":"Päivät+36+DATE(Calendar6Year,Calendar6MonthOption,1)-WEEKDAY(DATE(Calendar6Year,Calendar6MonthOption,1),WeekdayOption)","v":{"$error":"#N/A"}},{"$error":"#N/A"},"Muistiinpanot:"]
[]
[null,{"$f":"YEAR(DATE(Calendar6Year,Calendar6MonthOption+1,1))","v":{"$error":"#N/A"}},{"$f":"TEXT(DATE(Calendar6Year,Calendar6MonthOption+1,1),\"kkkk\")","v":{"$error":"#N/A"}}]
[null,{"$f":"UPPER(TEXT(B87,\"pppp\"))","v":{"$error":"#N/A"}},{"$error":"#N/A"},{"$error":"#N/A"},{"$error":"#N/A"},{"$error":"#N/A"},{"$error":"#N/A"},{"$error":"#N/A"}]
[null,{"$f":"Päivät+1+DATE(Calendar7Year,Calendar7MonthOption,1)-WEEKDAY(DATE(Calendar7Year,Calendar7MonthOption,1),WeekdayOption)","v":{"$error":"#N/A"}},{"$error":"#N/A"},{"$error":"#N/A"},{"$error":"#N/A"},{"$error":"#N/A"},{"$error":"#N/A"},{"$error":"#N/A"}]
[]
[null,{"$f":"Päivät+8+DATE(Calendar7Year,Calendar7MonthOption,1)-WEEKDAY(DATE(Calendar7Year,Calendar7MonthOption,1),WeekdayOption)","v":{"$error":"#N/A"}},{"$error":"#N/A"},{"$error":"#N/A"},{"$error":"#N/A"},{"$error":"#N/A"},{"$error":"#N/A"},{"$error":"#N/A"}]
[]
[null,{"$f":"Päivät+15+DATE(Calendar7Year,Calendar7MonthOption,1)-WEEKDAY(DATE(Calendar7Year,Calendar7MonthOption,1),WeekdayOption)","v":{"$error":"#N/A"}},{"$error":"#N/A"},{"$error":"#N/A"},{"$error":"#N/A"},{"$error":"#N/A"},{"$error":"#N/A"},{"$error":"#N/A"}]
[]
[null,{"$f":"Päivät+22+DATE(Calendar7Year,Calendar7MonthOption,1)-WEEKDAY(DATE(Calendar7Year,Calendar7MonthOption,1),WeekdayOption)","v":{"$error":"#N/A"}},{"$error":"#N/A"},{"$error":"#N/A"},{"$error":"#N/A"},{"$error":"#N/A"},{"$error":"#N/A"},{"$error":"#N/A"}]
[]
[null,{"$f":"Päivät+29+DATE(Calendar7Year,Calendar7MonthOption,1)-WEEKDAY(DATE(Calendar7Year,Calendar7MonthOption,1),WeekdayOption)","v":{"$error":"#N/A"}},{"$error":"#N/A"},{"$error":"#N/A"},{"$error":"#N/A"},{"$error":"#N/A"},{"$error":"#N/A"},{"$error":"#N/A"}]
[]
[null,{"$f":"Päivät+36+DATE(Calendar7Year,Calendar7MonthOption,1)-WEEKDAY(DATE(Calendar7Year,Calendar7MonthOption,1),WeekdayOption)","v":{"$error":"#N/A"}},{"$error":"#N/A"},"Muistiinpanot:"]
[]
[null,{"$f":"YEAR(DATE(Calendar7Year,Calendar7MonthOption+1,1))","v":{"$error":"#N/A"}},{"$f":"TEXT(DATE(Calendar7Year,Calendar7MonthOption+1,1),\"kkkk\")","v":{"$error":"#N/A"}}]
[null,{"$f":"UPPER(TEXT(B101,\"pppp\"))","v":{"$error":"#N/A"}},{"$error":"#N/A"},{"$error":"#N/A"},{"$error":"#N/A"},{"$error":"#N/A"},{"$error":"#N/A"},{"$error":"#N/A"}]
[null,{"$f":"Päivät+1+DATE(Calendar8Year,Calendar8MonthOption,1)-WEEKDAY(DATE(Calendar8Year,Calendar8MonthOption,1),WeekdayOption)","v":{"$error":"#N/A"}},{"$error":"#N/A"},{"$error":"#N/A"},{"$error":"#N/A"},{"$error":"#N/A"},{"$error":"#N/A"},{"$error":"#N/A"}]
[]
[null,{"$f":"Päivät+8+DATE(Calendar8Year,Calendar8MonthOption,1)-WEEKDAY(DATE(Calendar8Year,Calendar8MonthOption,1),WeekdayOption)","v":{"$error":"#N/A"}},{"$error":"#N/A"},{"$error":"#N/A"},{"$error":"#N/A"},{"$error":"#N/A"},{"$error":"#N/A"},{"$error":"#N/A"}]
[]
[null,{"$f":"Päivät+15+DATE(Calendar8Year,Calendar8MonthOption,1)-WEEKDAY(DATE(Calendar8Year,Calendar8MonthOption,1),WeekdayOption)","v":{"$error":"#N/A"}},{"$error":"#N/A"},{"$error":"#N/A"},{"$error":"#N/A"},{"$error":"#N/A"},{"$error":"#N/A"},{"$error":"#N/A"}]
[]
[null,{"$f":"Päivät+22+DATE(Calendar8Year,Calendar8MonthOption,1)-WEEKDAY(DATE(Calendar8Year,Calendar8MonthOption,1),WeekdayOption)","v":{"$error":"#N/A"}},{"$error":"#N/A"},{"$error":"#N/A"},{"$error":"#N/A"},{"$error":"#N/A"},{"$error":"#N/A"},{"$error":"#N/A"}]
[]
[null,{"$f":"Päivät+29+DATE(Calendar8Year,Calendar8MonthOption,1)-WEEKDAY(DATE(Calendar8Year,Calendar8MonthOption,1),WeekdayOption)","v":{"$error":"#N/A"}},{"$error":"#N/A"},{"$error":"#N/A"},{"$error":"#N/A"},{"$error":"#N/A"},{"$error":"#N/A"},{"$error":"#N/A"}]
[]
[null,{"$f":"Päivät+36+DATE(Calendar8Year,Calendar8MonthOption,1)-WEEKDAY(DATE(Calendar8Year,Calendar8MonthOption,1),WeekdayOption)","v":{"$error":"#N/A"}},{"$error":"#N/A"},"Muistiinpanot:"]
[]
[null,{"$f":"YEAR(DATE(Calendar8Year,Calendar8MonthOption+1,1))","v":{"$error":"#N/A"}},{"$f":"TEXT(DATE(Calendar8Year,Calendar8MonthOption+1,1),\"kkkk\")","v":{"$error":"#N/A"}}]
[null,{"$f":"UPPER(TEXT(B115,\"pppp\"))","v":{"$error":"#N/A"}},{"$error":"#N/A"},{"$error":"#N/A"},{"$error":"#N/A"},{"$error":"#N/A"},{"$error":"#N/A"},{"$error":"#N/A"}]
[null,{"$f":"Päivät+1+DATE(Calendar9Year,Calendar9MonthOption,1)-WEEKDAY(DATE(Calendar9Year,Calendar9MonthOption,1),WeekdayOption)","v":{"$error":"#N/A"}},{"$error":"#N/A"},{"$error":"#N/A"},{"$error":"#N/A"},{"$error":"#N/A"},{"$error":"#N/A"},{"$error":"#N/A"}]
[]
[null,{"$f":"Päivät+8+DATE(Calendar9Year,Calendar9MonthOption,1)-WEEKDAY(DATE(Calendar9Year,Calendar9MonthOption,1),WeekdayOption)","v":{"$error":"#N/A"}},{"$error":"#N/A"},{"$error":"#N/A"},{"$error":"#N/A"},{"$error":"#N/A"},{"$error":"#N/A"},{"$error":"#N/A"}]
[]
[null,{"$f":"Päivät+15+DATE(Calendar9Year,Calendar9MonthOption,1)-WEEKDAY(DATE(Calendar9Year,Calendar9MonthOption,1),WeekdayOption)","v":{"$error":"#N/A"}},{"$error":"#N/A"},{"$error":"#N/A"},{"$error":"#N/A"},{"$error":"#N/A"},{"$error":"#N/A"},{"$error":"#N/A"}]
[]
[null,{"$f":"Päivät+22+DATE(Calendar9Year,Calendar9MonthOption,1)-WEEKDAY(DATE(Calendar9Year,Calendar9MonthOption,1),WeekdayOption)","v":{"$error":"#N/A"}},{"$error":"#N/A"},{"$error":"#N/A"},{"$error":"#N/A"},{"$error":"#N/A"},{"$error":"#N/A"},{"$error":"#N/A"}]
[]
[null,{"$f":"Päivät+29+DATE(Calendar9Year,Calendar9MonthOption,1)-WEEKDAY(DATE(Calendar9Year,Calendar9MonthOption,1),WeekdayOption)","v":{"$error":"#N/A"}},{"$error":"#N/A"},{"$error":"#N/A"},{"$error":"#N/A"},{"$error":"#N/A"},{"$error":"#N/A"},{"$error":"#N/A"}]
[]
[null,{"$f":"Päivät+36+DATE(Calendar9Year,Calendar9MonthOption,1)-WEEKDAY(DATE(Calendar9Year,Calendar9MonthOption,1),WeekdayOption)","v":{"$error":"#N/A"}},{"$error":"#N/A"},"Muistiinpanot:"]
[]
[null,{"$f":"YEAR(DATE(Calendar9Year,Calendar9MonthOption+1,1))","v":{"$error":"#N/A"}},{"$f":"TEXT(DATE(Calendar9Year,Calendar9MonthOption+1,1),\"kkkk\")","v":{"$error":"#N/A"}}]
[null,{"$f":"UPPER(TEXT(B129,\"pppp\"))","v":{"$error":"#N/A"}},{"$error":"#N/A"},{"$error":"#N/A"},{"$error":"#N/A"},{"$error":"#N/A"},{"$error":"#N/A"},{"$error":"#N/A"}]
[null,{"$f":"Päivät+1+DATE(Calendar10Year,Calendar10MonthOption,1)-WEEKDAY(DATE(Calendar10Year,Calendar10MonthOption,1),WeekdayOption)","v":{"$error":"#N/A"}},{"$error":"#N/A"},{"$error":"#N/A"},{"$error":"#N/A"},{"$error":"#N/A"},{"$error":"#N/A"},{"$error":"#N/A"}]
[]
[null,{"$f":"Päivät+8+DATE(Calendar10Year,Calendar10MonthOption,1)-WEEKDAY(DATE(Calendar10Year,Calendar10MonthOption,1),WeekdayOption)","v":{"$error":"#N/A"}},{"$error":"#N/A"},{"$error":"#N/A"},{"$error":"#N/A"},{"$error":"#N/A"},{"$error":"#N/A"},{"$error":"#N/A"}]
[]
[null,{"$f":"Päivät+15+DATE(Calendar10Year,Calendar10MonthOption,1)-WEEKDAY(DATE(Calendar10Year,Calendar10MonthOption,1),WeekdayOption)","v":{"$error":"#N/A"}},{"$error":"#N/A"},{"$error":"#N/A"},{"$error":"#N/A"},{"$error":"#N/A"},{"$error":"#N/A"},{"$error":"#N/A"}]
[]
[null,{"$f":"Päivät+22+DATE(Calendar10Year,Calendar10MonthOption,1)-WEEKDAY(DATE(Calendar10Year,Calendar10MonthOption,1),WeekdayOption)","v":{"$error":"#N/A"}},{"$error":"#N/A"},{"$error":"#N/A"},{"$error":"#N/A"},{"$error":"#N/A"},{"$error":"#N/A"},{"$error":"#N/A"}]
[]
[null,{"$f":"Päivät+29+DATE(Calendar10Year,Calendar10MonthOption,1)-WEEKDAY(DATE(Calendar10Year,Calendar10MonthOption,1),WeekdayOption)","v":{"$error":"#N/A"}},{"$error":"#N/A"},{"$error":"#N/A"},{"$error":"#N/A"},{"$error":"#N/A"},{"$error":"#N/A"},{"$error":"#N/A"}]
[]
[null,{"$f":"Päivät+36+DATE(Calendar10Year,Calendar10MonthOption,1)-WEEKDAY(DATE(Calendar10Year,Calendar10MonthOption,1),WeekdayOption)","v":{"$error":"#N/A"}},{"$error":"#N/A"},"Muistiinpanot:"]
[]
[null,{"$f":"YEAR(DATE(Calendar10Year,Calendar10MonthOption+1,1))","v":{"$error":"#N/A"}},{"$f":"TEXT(DATE(Calendar10Year,Calendar10MonthOption+1,1),\"kkkk\")","v":{"$error":"#N/A"}}]
[null,{"$f":"UPPER(TEXT(B143,\"pppp\"))","v":{"$error":"#N/A"}},{"$error":"#N/A"},{"$error":"#N/A"},{"$error":"#N/A"},{"$error":"#N/A"},{"$error":"#N/A"},{"$error":"#N/A"}]
[null,{"$f":"Päivät+1+DATE(Calendar11Year,Calendar11MonthOption,1)-WEEKDAY(DATE(Calendar11Year,Calendar11MonthOption,1),WeekdayOption)","v":{"$error":"#N/A"}},{"$error":"#N/A"},{"$error":"#N/A"},{"$error":"#N/A"},{"$error":"#N/A"},{"$error":"#N/A"},{"$error":"#N/A"}]
[]
[null,{"$f":"Päivät+8+DATE(Calendar11Year,Calendar11MonthOption,1)-WEEKDAY(DATE(Calendar11Year,Calendar11MonthOption,1),WeekdayOption)","v":{"$error":"#N/A"}},{"$error":"#N/A"},{"$error":"#N/A"},{"$error":"#N/A"},{"$error":"#N/A"},{"$error":"#N/A"},{"$error":"#N/A"}]
[]
[null,{"$f":"Päivät+15+DATE(Calendar11Year,Calendar11MonthOption,1)-WEEKDAY(DATE(Calendar11Year,Calendar11MonthOption,1),WeekdayOption)","v":{"$error":"#N/A"}},{"$error":"#N/A"},{"$error":"#N/A"},{"$error":"#N/A"},{"$error":"#N/A"},{"$error":"#N/A"},{"$error":"#N/A"}]
[]
[null,{"$f":"Päivät+22+DATE(Calendar11Year,Calendar11MonthOption,1)-WEEKDAY(DATE(Calendar11Year,Calendar11MonthOption,1),WeekdayOption)","v":{"$error":"#N/A"}},{"$error":"#N/A"},{"$error":"#N/A"},{"$error":"#N/A"},{"$error":"#N/A"},{"$error":"#N/A"},{"$error":"#N/A"}]
[]
[null,{"$f":"Päivät+29+DATE(Calendar11Year,Calendar11MonthOption,1)-WEEKDAY(DATE(Calendar11Year,Calendar11MonthOption,1),WeekdayOption)","v":{"$error":"#N/A"}},{"$error":"#N/A"},{"$error":"#N/A"},{"$error":"#N/A"},{"$error":"#N/A"},{"$error":"#N/A"},{"$error":"#N/A"}]
[]
[null,{"$f":"Päivät+36+DATE(Calendar11Year,Calendar11MonthOption,1)-WEEKDAY(DATE(Calendar11Year,Calendar11MonthOption,1),WeekdayOption)","v":{"$error":"#N/A"}},{"$error":"#N/A"},"Muistiinpanot:"]
[]
[null,{"$f":"YEAR(DATE(Calendar11Year,Calendar11MonthOption+1,1))","v":{"$error":"#N/A"}},{"$f":"TEXT(DATE(Calendar11Year,Calendar11MonthOption+1,1),\"kkkk\")","v":{"$error":"#N/A"}}]
[null,{"$f":"UPPER(TEXT(B157,\"pppp\"))","v":{"$error":"#N/A"}},{"$error":"#N/A"},{"$error":"#N/A"},{"$error":"#N/A"},{"$error":"#N/A"},{"$error":"#N/A"},{"$error":"#N/A"}]
[null,{"$f":"Päivät+1+DATE(Calendar12Year,Calendar12MonthOption,1)-WEEKDAY(DATE(Calendar12Year,Calendar12MonthOption,1),WeekdayOption)","v":{"$error":"#N/A"}},{"$error":"#N/A"},{"$error":"#N/A"},{"$error":"#N/A"},{"$error":"#N/A"},{"$error":"#N/A"},{"$error":"#N/A"}]
[]
[null,{"$f":"Päivät+8+DATE(Calendar12Year,Calendar12MonthOption,1)-WEEKDAY(DATE(Calendar12Year,Calendar12MonthOption,1),WeekdayOption)","v":{"$error":"#N/A"}},{"$error":"#N/A"},{"$error":"#N/A"},{"$error":"#N/A"},{"$error":"#N/A"},{"$error":"#N/A"},{"$error":"#N/A"}]
[]
[null,{"$f":"Päivät+15+DATE(Calendar12Year,Calendar12MonthOption,1)-WEEKDAY(DATE(Calendar12Year,Calendar12MonthOption,1),WeekdayOption)","v":{"$error":"#N/A"}},{"$error":"#N/A"},{"$error":"#N/A"},{"$error":"#N/A"},{"$error":"#N/A"},{"$error":"#N/A"},{"$error":"#N/A"}]
[]
[null,{"$f":"Päivät+22+DATE(Calendar12Year,Calendar12MonthOption,1)-WEEKDAY(DATE(Calendar12Year,Calendar12MonthOption,1),WeekdayOption)","v":{"$error":"#N/A"}},{"$error":"#N/A"},{"$error":"#N/A"},{"$error":"#N/A"},{"$error":"#N/A"},{"$error":"#N/A"},{"$error":"#N/A"}]
[]
[null,{"$f":"Päivät+29+DATE(Calendar12Year,Calendar12MonthOption,1)-WEEKDAY(DATE(Calendar12Year,Calendar12MonthOption,1),WeekdayOption)","v":{"$error":"#N/A"}},{"$error":"#N/A"},{"$error":"#N/A"},{"$error":"#N/A"},{"$error":"#N/A"},{"$error":"#N/A"},{"$error":"#N/A"}]
[]
[null,{"$f":"Päivät+36+DATE(Calendar12Year,Calendar12MonthOption,1)-WEEKDAY(DATE(Calendar12Year,Calendar12MonthOption,1),WeekdayOption)","v":{"$error":"#N/A"}},{"$error":"#N/A"},"Muistiinpanot:"]